fUST/lending_fUST_20240818
["ID","MTS","AMOUNT","RATE_DAILY","PERIOD"]
[335182085,1723943237099,-27.48155066,0.00018869,2]
[335182087,1723943237121,-250.0,0.00018921,2]
[335182088,1723943237143,-250.0,0.00018972,2]
[335182089,1723943237165,-250.0,0.00019024,2]
[335182090,1723943237187,-131.04398762,0.00019075,2]
[335182128,1723943254114,-118.95601238,0.00019075,2]
[335182129,1723943254136,-250.0,0.00019127,2]
[335182130,1723943254158,-77.55436093,0.00019178,2]
[335182131,1723943254186,-172.44563907,0.00019178,2]
[335182132,1723943254208,-250.0,0.0001923,2]
[335182133,1723943254229,-250.0,0.00019281,2]
[335182134,1723943254251,-250.0,0.00019333,2]
[335182135,1723943254272,-250.0,0.00019384,2]
[335182136,1723943254296,-250.0,0.00019435,2]
[335182137,1723943254318,-250.0,0.00019487,2]
[335182138,1723943254338,-166.137291,0.00019506,2]
[335182139,1723943254360,-250.0,0.00019538,2]
[335182140,1723943254381,-250.0,0.0001959,2]
[335182141,1723943254404,-108.71833512,0.00019641,2]
[335182143,1723943295219,169.33137208,0.00015001,2]
[335182145,1723943353910,282.44268643,0.00014519,2]
[335182187,1723943431962,-189.4897494,0.00019083,2]
[335182189,1723943431972,-110.01030784,0.00019178,2]
[335182220,1723943437887,-56.12698316,0.00019178,2]
[335182222,1723943437897,-1296.491096,0.00019372,2]
[335182224,1723943437907,-678.1731368,0.00019475,2]
[335182226,1723943437917,-141.28166488,0.00019641,2]
[335182228,1723943437927,-410.16744298,0.00019677,2]
[335182230,1723943437937,-300.0,0.00019677,2]
[335182232,1723943437947,-300.0,0.00019677,2]
[335182234,1723943437957,-24900.0,0.00019678,2]
[335182236,1723943437967,-250.0,0.00019693,2]
[335182238,1723943437977,-587.498657,0.00019714,2]
[335182239,1723943437988,-250.0,0.00019744,2]
[335182241,1723943438000,-156.6016576,0.0002,2]
[335182243,1723943438009,-215.003023,0.00020707,2]
[335182245,1723943438019,-473.07502135,0.00020871,2]
[335182247,1723943438029,-608.21161448,0.00020993,2]
[335182249,1723943438041,-300.0,0.00021433,2]
[335182251,1723943438051,-2442.73986509,0.00021508,2]
[335182253,1723943438061,-4988.73185847,0.00021608,2]
[335182255,1723943438071,-420.0,0.00021645,2]
[335182257,1723943438081,-150.14190704,0.00021716,2]
[335182259,1723943438091,-4988.73185847,0.00021764,2]
[335182261,1723943438100,-500.0,0.00021816,2]
[335182263,1723943438111,-500.0,0.00021816,2]
[335182265,1723943438123,-500.0,0.00021816,2]
[335182267,1723943438133,-500.0,0.00021816,2]
[335182269,1723943438143,-517.12324288,0.00021816,2]
[335182270,1723943438153,-62493.68130599,0.00021817,2]
[335182271,1723943438162,-673.02,0.00021897,3]
[335182272,1723943438172,-224.34,0.00021897,3]
[335182273,1723943438181,-673.02,0.00021897,3]
[335182274,1723943438191,-157499.147971,0.00021907,3]
[335182275,1723943438200,-500.0,0.00021917,2]
[335182276,1723943438210,-500.0,0.00021917,2]
[335182277,1723943438220,-500.0,0.00021917,2]
[335182278,1723943438230,-500.0,0.00021917,2]
[335182279,1723943438240,-500.0,0.00021917,2]
[335182280,1723943438250,-500.0,0.00021917,2]
[335182281,1723943438261,-500.0,0.00021917,2]
[335182282,1723943438272,-500.0,0.00021917,2]
[335182283,1723943438283,-500.0,0.00021917,2]
[335182284,1723943438296,-521.42834,0.00021917,2]
[335182285,1723943438309,-408.96078334,0.00021917,2]
[335182286,1723943438319,-500.0,0.00021917,2]
[335182287,1723943438329,-500.0,0.00021917,2]
[335182288,1723943438338,-500.0,0.00021917,2]
[335182289,1723943438348,-500.0,0.00021917,2]
[335182290,1723943438358,-500.0,0.00021917,2]
[335182291,1723943438367,-941.89,0.00021917,2]
[335182292,1723943438379,-500.0,0.00021917,2]
[335182293,1723943438388,-504.20703432,0.00021917,2]
[335182294,1723943438398,-500.0,0.00021917,2]
[335182295,1723943438407,-500.0,0.00021917,2]
[335182296,1723943438417,-506.93125917,0.00021917,2]
[335182297,1723943438428,-787.38,0.00021917,2]
[335182298,1723943438440,-500.0,0.00021917,2]
[335182299,1723943438450,-500.0,0.00021917,2]
[335182300,1723943438460,-500.0,0.00021917,2]
[335182301,1723943438471,-153.57610697,0.00021917,2]
[335182302,1723943438481,-500.0,0.00021917,2]
[335182303,1723943438490,-500.0,0.00021917,2]
[335182304,1723943438500,-500.0,0.00021917,2]
[335182305,1723943438511,-500.0,0.00021917,2]
[335182306,1723943438521,-500.0,0.00021917,2]
[335182307,1723943438533,-500.0,0.00021917,2]
[335182308,1723943438544,-500.0,0.00021917,2]
[335182309,1723943438554,-500.0,0.00021917,2]
[335182310,1723943438564,-506.08153697,0.00021917,2]
[335182311,1723943438573,-500.0,0.00021917,2]
[335182312,1723943438583,-500.0,0.00021917,2]
[335182313,1723943438592,-500.0,0.00021917,2]
[335182314,1723943438603,-732.78,0.00021917,2]
[335182315,1723943438613,-500.0,0.00021917,2]
[335182316,1723943438623,-500.0,0.00021917,2]
[335182317,1723943438632,-500.0,0.00021917,2]
[335182318,1723943438642,-500.0,0.00021917,2]
[335182319,1723943438651,-500.0,0.00021917,2]
[335182320,1723943438661,-500.0,0.00021917,2]
[335182321,1723943438670,-500.0,0.00021917,2]
[335182322,1723943438679,-538.80347896,0.00021917,2]
[335182323,1723943438693,-500.0,0.00021917,2]
[335182324,1723943438702,-517.5228191,0.00021917,2]
[335182325,1723943438712,-500.0,0.00021917,2]
[335182326,1723943438722,-500.0,0.00021917,2]
[335182327,1723943438732,-500.0,0.00021917,2]
[335182328,1723943438741,-962.32,0.00021917,2]
[335182329,1723943438751,-578.52,0.00021917,2]
[335182330,1723943438761,-500.0,0.00021917,2]
[335182331,1723943438770,-500.0,0.00021917,2]
[335182332,1723943438780,-511.42772732,0.00021917,2]
[335182333,1723943438789,-500.0,0.00021917,2]
[335182334,1723943438799,-507.60752672,0.00021917,2]
[335182335,1723943438808,-519.93,0.00021917,2]
[335182336,1723943438818,-500.0,0.00021917,2]
[335182337,1723943438827,-500.0,0.00021917,2]
[335182338,1723943438922,-500.0,0.00021917,2]
[335182339,1723943438932,-500.0,0.00021917,2]
[335182340,1723943438943,-500.0,0.00021917,2]
[335182341,1723943438954,-500.0,0.00021917,2]
[335182342,1723943438964,-756.57,0.00021917,2]
[335182343,1723943438973,-500.0,0.00021917,2]
[335182344,1723943438983,-500.0,0.00021917,2]
[335182345,1723943438993,-500.0,0.00021917,2]
[335182346,1723943439002,-500.0,0.00021917,2]
[335182347,1723943439011,-709.0,0.00021917,2]
[335182348,1723943439020,-500.0,0.00021917,2]
[335182349,1723943439030,-500.0,0.00021917,2]
[335182350,1723943439042,-500.0,0.00021917,2]
[335182351,1723943439052,-1071.88,0.00021917,2]
[335182352,1723943439061,-500.0,0.00021917,2]
[335182353,1723943439070,-500.0,0.00021917,2]
[335182354,1723943439081,-500.0,0.00021917,2]
[335182355,1723943439090,-500.0,0.00021917,2]
[335182356,1723943439099,-500.0,0.00021917,2]
[335182357,1723943439109,-500.0,0.00021917,2]
[335182358,1723943439120,-420.19280831,0.00021917,2]
[335182359,1723943439130,-500.0,0.00021917,2]
[335182360,1723943439139,-500.0,0.00021917,2]
[335182361,1723943439148,-500.0,0.00021917,2]
[335182362,1723943439158,-518.38,0.00021917,2]
[335182363,1723943439168,-500.0,0.00021917,2]
[335182364,1723943439178,-500.0,0.00021917,2]
[335182365,1723943439187,-341.01823474,0.00021917,2]
[335182366,1723943439196,-500.0,0.00021917,2]
[335182367,1723943439206,-500.0,0.00021917,2]
[335182368,1723943439215,-612.59,0.00021917,2]
[335182369,1723943439225,-500.0,0.00021917,2]
[335182370,1723943439234,-500.0,0.00021917,2]
[335182371,1723943439244,-729.28,0.00021917,2]
[335182372,1723943439253,-500.0,0.00021917,2]
[335182373,1723943439263,-500.0,0.00021917,2]
[335182374,1723943439273,-404.52251278,0.00021917,2]
[335182375,1723943439282,-500.0,0.00021917,2]
[335182376,1723943439291,-500.0,0.00021917,2]
[335182377,1723943439302,-537.33,0.00021917,2]
[335182378,1723943439311,-500.0,0.00021917,2]
[335182379,1723943439321,-500.0,0.00021917,2]
[335182380,1723943439330,-504.46899231,0.00021917,2]
[335182381,1723943439339,-500.0,0.00021917,2]
[335182382,1723943439349,-500.0,0.00021917,2]
[335182383,1723943439358,-773.58,0.00021917,2]
[335182384,1723943439367,-500.0,0.00021917,2]
[335182385,1723943439383,-500.0,0.00021917,2]
[335182386,1723943439405,-500.0,0.00021917,2]
[335182387,1723943439426,-500.0,0.00021917,2]
[335182388,1723943439448,-500.0,0.00021917,2]
[335182389,1723943439469,-500.0,0.00021917,2]
[335182390,1723943439487,-500.0,0.00021917,2]
[335182391,1723943439506,-500.0,0.00021917,2]
[335182394,1723943439520,-948.51,0.00021917,2]
[335182395,1723943439539,-500.0,0.00021917,2]
[335182396,1723943439560,-500.0,0.00021917,2]
[335182397,1723943439573,-500.0,0.00021917,2]
[335182398,1723943439591,-501.15714507,0.00021917,2]
[335182399,1723943439608,-500.0,0.00021917,2]
[335182400,1723943439626,-674.5,0.00021917,2]
[335182401,1723943439639,-500.0,0.00021917,2]
[335182402,1723943439653,-513.07834967,0.00021917,2]
[335182403,1723943439669,-500.0,0.00021917,2]
[335182404,1723943439684,-500.0,0.00021917,2]
[335182405,1723943439699,-500.0,0.00021917,2]
[335182407,1723943439713,-500.0,0.00021917,2]
[335182409,1723943439728,-500.0,0.00021917,2]
[335182411,1723943439742,-834.66,0.00021917,2]
[335182412,1723943439756,-639.3,0.00021917,2]
[335182413,1723943439771,-500.0,0.00021917,2]
[335182414,1723943439786,-500.0,0.00021917,2]
[335182415,1723943439802,-502.34974926,0.00021917,2]
[335182416,1723943439817,-500.0,0.00021917,2]
[335182417,1723943439832,-1533.17,0.00021917,2]
[335182418,1723943439848,-500.0,0.00021917,2]
[335182419,1723943439862,-500.0,0.00021917,2]
[335182420,1723943439878,-500.0,0.00021917,2]
[335182421,1723943439892,-500.0,0.00021917,2]
[335182422,1723943439907,-500.0,0.00021917,2]
[335182423,1723943439923,-500.0,0.00021917,2]
[335182424,1723943439950,-200.0,0.00021917,2]
[335182425,1723943439979,-500.0,0.00021917,2]
[335182427,1723943440000,-500.0,0.00021917,2]
[335182430,1723943440019,-502.05464119,0.00021917,2]
[335182433,1723943440039,-513.14688146,0.00021917,2]
[335182435,1723943440057,-500.0,0.00021917,2]
[335182438,1723943440072,-505.28,0.00021917,2]
[335182441,1723943440088,-500.0,0.00021917,2]
[335182443,1723943440105,-500.0,0.00021917,2]
[335182445,1723943440123,-500.0,0.00021917,2]
[335182448,1723943440140,-731.34,0.00021917,2]
[335182453,1723943440271,-785.89,0.00021917,2]
[335182454,1723943440280,-500.0,0.00021917,2]
[335182455,1723943440290,-500.0,0.00021917,2]
[335182456,1723943440299,-500.0,0.00021917,2]
[335182457,1723943440310,-593.93,0.00021917,2]
[335182458,1723943440320,-500.0,0.00021917,2]
[335182459,1723943440331,-500.0,0.00021917,2]
[335182460,1723943440341,-500.0,0.00021917,2]
[335182461,1723943440351,-500.0,0.00021917,2]
[335182462,1723943440360,-500.0,0.00021917,2]
[335182463,1723943440370,-645.44374883,0.00021917,2]
[335182464,1723943440380,-500.0,0.00021917,2]
[335182465,1723943440391,-500.0,0.00021917,2]
[335182466,1723943440401,-500.0,0.00021917,2]
[335182467,1723943440410,-872.89,0.00021917,2]
[335182468,1723943440419,-844.35,0.00021917,2]
[335182469,1723943440428,-252.51405251,0.00021917,2]
[335182470,1723943440438,-226.16110638,0.00021917,2]
[335182471,1723943440448,-500.0,0.00021917,2]
[335182472,1723943440461,-500.0,0.00021917,2]
[335182473,1723943440472,-500.0,0.00021917,2]
[335182474,1723943440482,-2005.0,0.00021917,10]
[335182475,1723943440492,-500.0,0.00021917,2]
[335182476,1723943440501,-501.11217131,0.00021917,2]
[335182477,1723943440511,-1315.96,0.00021917,2]
[335182478,1723943440520,-500.0,0.00021917,2]
[335182479,1723943440532,-506.01512233,0.00021917,2]
[335182480,1723943440542,-802.84,0.00021917,2]
[335182481,1723943440551,-500.0,0.00021917,2]
[335182482,1723943440561,-510.06,0.00021917,2]
[335182483,1723943440571,-500.0,0.00021917,2]
[335182484,1723943440583,-500.0,0.00021917,2]
[335182485,1723943440592,-635.55,0.00021917,2]
[335182486,1723943440602,-310.30779876,0.00021917,2]
[335182487,1723943440611,-500.0,0.00021917,2]
[335182488,1723943440620,-708.52,0.00021917,2]
[335182489,1723943440631,-500.0,0.00021917,2]
[335182490,1723943440641,-500.0,0.00021917,2]
[335182491,1723943440651,-500.0,0.00021917,2]
[335182492,1723943440660,-500.0,0.00021917,2]
[335182493,1723943440670,-500.0,0.00021917,2]
[335182494,1723943440679,-500.0,0.00021917,2]
[335182495,1723943440689,-538.36,0.00021917,2]
[335182496,1723943440699,-500.0,0.00021917,2]
[335182497,1723943440709,-1113.11,0.00021917,2]
[335182498,1723943440718,-199.63626724,0.00021917,2]
[335182501,1723943440940,-300.36373276,0.00021917,2]
[335182502,1723943440952,-500.0,0.00021917,2]
[335182503,1723943440962,-661.82,0.00021917,2]
[335182504,1723943440974,-500.0,0.00021917,2]
[335182505,1723943440985,-504.58085367,0.00021917,2]
[335182506,1723943440996,-500.0,0.00021917,2]
[335182507,1723943441006,-500.0,0.00021917,2]
[335182508,1723943441017,-500.0,0.00021917,2]
[335182509,1723943441028,-988.85,0.00021917,2]
[335182510,1723943441041,-500.0,0.00021917,2]
[335182511,1723943441051,-731.45,0.00021917,2]
[335182512,1723943441061,-500.0,0.00021917,2]
[335182513,1723943441072,-500.0,0.00021917,2]
[335182514,1723943441082,-500.0,0.00021917,2]
[335182515,1723943441092,-500.0,0.00021917,2]
[335182516,1723943441101,-500.0,0.00021917,2]
[335182517,1723943441110,-500.0,0.00021917,2]
[335182518,1723943441121,-500.0,0.00021917,2]
[335182519,1723943441131,-500.0,0.00021917,2]
[335182520,1723943441141,-915.04,0.00021917,2]
[335182521,1723943441151,-665.13,0.00021917,2]
[335182522,1723943441160,-383.21329357,0.00021917,2]
[335182523,1723943441688,-167.97670643,0.00021917,2]
[335182524,1723943441698,-500.0,0.00021917,2]
[335182525,1723943441708,-500.0,0.00021917,2]
[335182526,1723943441717,-624.12901021,0.00021917,2]
[335182527,1723943441726,-500.0,0.00021917,2]
[335182528,1723943441736,-500.0,0.00021917,2]
[335182529,1723943441746,-500.0,0.00021917,7]
[335182530,1723943441756,-541.16919352,0.00021917,2]
[335182531,1723943441767,-500.0,0.00021917,2]
[335182532,1723943441777,-536.9,0.00021917,2]
[335182533,1723943441788,-725.37,0.00021917,2]
[335182534,1723943441800,-507.69756563,0.00021917,2]
[335182535,1723943441810,-767.54,0.00021917,2]
[335182536,1723943441820,-500.0,0.00021917,2]
[335182537,1723943441831,-500.0,0.00021917,2]
[335182538,1723943441842,-672.28,0.00021917,2]
[335182539,1723943441854,-378.29898428,0.00021917,2]
[335182549,1723943443001,-13.28937461,0.00021917,2]
[335182550,1723943443089,-113.72215649,0.00021917,2]
[335182551,1723943443099,-512.52,0.00021917,2]
[335182552,1723943443108,-500.0,0.00021917,2]
[335182553,1723943443118,-500.0,0.00021917,2]
[335182554,1723943443130,-760.16,0.00021917,2]
[335182557,1723943443139,-500.0,0.00021917,2]
[335182559,1723943443149,-500.0,0.00021917,2]
[335182561,1723943443158,-500.0,0.00021917,2]
[335182563,1723943443167,-500.0,0.00021917,2]
[335182564,1723943443176,-839.28,0.00021917,2]
[335182565,1723943443186,-500.0,0.00021917,2]
[335182566,1723943443198,-500.0,0.00021917,2]
[335182567,1723943443208,-788.32,0.00021917,2]
[335182568,1723943443219,-500.0,0.00021917,2]
[335182569,1723943443230,-500.0,0.00021917,2]
[335182570,1723943443241,-500.0,0.00021917,2]
[335182571,1723943443251,-500.0,0.00021917,2]
[335182572,1723943443261,-361.3406628,0.00021917,2]
[335182573,1723943443271,-500.0,0.00021917,2]
[335182574,1723943443281,-500.0,0.00021917,2]
[335182575,1723943443292,-163.31519496,0.00021917,2]
[335182576,1723943443303,-510.89,0.00021917,2]
[335182577,1723943443313,-213.08403573,0.00021917,2]
[335182578,1723943443322,-500.0,0.00021917,2]
[335182579,1723943443332,-500.0,0.00021917,2]
[335182580,1723943443341,-500.0,0.00021917,2]
[335182581,1723943443350,-500.0,0.00021917,2]
[335182582,1723943443360,-500.0,0.00021917,2]
[335182583,1723943443369,-500.0,0.00021917,2]
[335182584,1723943443379,-500.0,0.00021917,2]
[335182585,1723943443388,-500.0,0.00021917,2]
[335182586,1723943443397,-500.0,0.00021917,2]
[335182587,1723943443407,-500.0,0.00021917,2]
[335182588,1723943443417,-500.0,0.00021917,2]
[335182589,1723943443426,-500.0,0.00021917,2]
[335182590,1723943443436,-500.0,0.00021917,2]
[335182591,1723943443446,-500.0,0.00021917,2]
[335182592,1723943443455,-500.0,0.00021917,2]
[335182593,1723943443465,-500.0,0.00021917,2]
[335182594,1723943443474,-500.0,0.00021917,2]
[335182595,1723943443483,-500.0,0.00021917,2]
[335182596,1723943443492,-500.0,0.00021917,2]
[335182597,1723943443502,-540.89,0.00021917,2]
[335182598,1723943443511,-500.0,0.00021917,2]
[335182599,1723943443520,-507.07,0.00021917,2]
[335182600,1723943443530,-500.0,0.00021917,2]
[335182601,1723943443539,-500.0,0.00021917,2]
[335182602,1723943443548,-500.0,0.00021917,2]
[335182603,1723943443557,-502.55610178,0.00021917,2]
[335182604,1723943443566,-500.0,0.00021917,2]
[335182605,1723943443575,-513.71,0.00021917,2]
[335182606,1723943443585,-623.76,0.00021917,2]
[335182607,1723943443594,-500.0,0.00021917,2]
[335182608,1723943443603,-500.0,0.00021917,2]
[335182609,1723943443612,-170.94072366,0.00021917,2]
[335182610,1723943443622,-500.0,0.00021917,2]
[335182611,1723943443632,-500.0,0.00021917,2]
[335182612,1723943443642,-877.92,0.00021917,2]
[335182613,1723943443651,-500.0,0.00021917,2]
[335182614,1723943443660,-500.0,0.00021917,2]
[335182615,1723943443669,-511.43444386,0.00021917,2]
[335182616,1723943443679,-500.0,0.00021917,2]
[335182617,1723943443688,-524.43,0.00021917,2]
[335182618,1723943443698,-500.0,0.00021917,2]
[335182619,1723943443707,-500.0,0.00021917,2]
[335182620,1723943443716,-643.47,0.00021917,2]
[335182621,1723943443725,-500.0,0.00021917,2]
[335182622,1723943443735,-1000.0,0.00021917,2]
[335182623,1723943443745,-500.0,0.00021917,2]
[335182624,1723943443820,-500.0,0.00021917,2]
[335182625,1723943443833,-500.0,0.00021917,2]
[335182626,1723943443844,-500.0,0.00021917,2]
[335182627,1723943443853,-500.0,0.00021917,2]
[335182628,1723943443863,-500.0,0.00021917,2]
[335182629,1723943443872,-500.0,0.00021917,2]
[335182630,1723943443882,-500.0,0.00021917,2]
[335182631,1723943443892,-500.0,0.00021917,2]
[335182632,1723943443901,-503.1563664,0.00021917,2]
[335182634,1723943443911,-957.59,0.00021917,2]
[335182635,1723943443920,-500.0,0.00021917,2]
[335182637,1723943443929,-503.3234106,0.00021917,2]
[335182638,1723943443938,-1266.84,0.00021917,2]
[335182639,1723943443947,-500.0,0.00021917,2]
[335182640,1723943443956,-500.0,0.00021917,2]
[335182641,1723943443966,-500.0,0.00021917,2]
[335182642,1723943443975,-500.0,0.00021917,2]
[335182643,1723943443983,-500.0,0.00021917,2]
[335182644,1723943443992,-500.0,0.00021917,2]
[335182645,1723943444001,-500.0,0.00021917,2]
[335182646,1723943444010,-500.0,0.00021917,2]
[335182647,1723943444020,-500.0,0.00021917,2]
[335182648,1723943444029,-500.0,0.00021917,2]
[335182649,1723943444039,-500.0,0.00021917,2]
[335182650,1723943444051,-500.0,0.00021917,2]
[335182651,1723943444060,-500.0,0.00021917,2]
[335182652,1723943444069,-992.84,0.00021917,2]
[335182653,1723943444078,-514.54134365,0.00021917,2]
[335182654,1723943444089,-500.0,0.00021917,2]
[335182655,1723943444098,-500.0,0.00021917,2]
[335182656,1723943444107,-507.95356114,0.00021917,2]
[335182657,1723943444118,-500.0,0.00021917,2]
[335182658,1723943444128,-500.0,0.00021917,2]
[335182659,1723943444137,-506.55459487,0.00021917,2]
[335182660,1723943444146,-500.0,0.00021917,2]
[335182661,1723943444156,-634.93191752,0.00021917,2]
[335182662,1723943444165,-500.0,0.00021917,2]
[335182663,1723943444174,-500.0,0.00021917,2]
[335182664,1723943444183,-500.0,0.00021917,2]
[335182665,1723943444192,-500.0,0.00021917,2]
[335182666,1723943444202,-500.0,0.00021917,2]
[335182667,1723943444211,-503.64181494,0.00021917,2]
[335182668,1723943444220,-500.0,0.00021917,2]
[335182669,1723943444229,-500.0,0.00021917,2]
[335182670,1723943444239,-500.0,0.00021917,2]
[335182671,1723943444248,-500.0,0.00021917,2]
[335182672,1723943444257,-234.60264328,0.00021917,2]
[335182673,1723943444266,-500.0,0.00021917,2]
[335182674,1723943444275,-502.12969963,0.00021917,2]
[335182675,1723943444285,-500.0,0.00021917,2]
[335182676,1723943444294,-502.87001699,0.00021917,2]
[335182677,1723943444303,-633.13,0.00021917,2]
[335182678,1723943444313,-525.89,0.00021917,2]
[335182679,1723943444322,-500.0,0.00021917,2]
[335182680,1723943444331,-500.0,0.00021917,2]
[335182681,1723943444340,-1153.0,0.00021917,2]
[335182682,1723943444350,-502.69646179,0.00021917,2]
[335182683,1723943444360,-500.0,0.00021917,2]
[335182684,1723943444369,-1526.09,0.00021917,2]
[335182685,1723943444379,-500.0,0.00021917,2]
[335182686,1723943444389,-500.0,0.00021917,2]
[335182687,1723943444398,-500.0,0.00021917,2]
[335182688,1723943444407,-500.0,0.00021917,2]
[335182689,1723943444416,-500.0,0.00021917,2]
[335182690,1723943444425,-500.0,0.00021917,2]
[335182691,1723943444435,-500.0,0.00021917,2]
[335182692,1723943444444,-500.0,0.00021917,2]
[335182693,1723943444453,-500.0,0.00021917,2]
[335182694,1723943444462,-500.0,0.00021917,2]
[335182695,1723943444472,-500.0,0.00021917,2]
[335182696,1723943444481,-1374.52,0.00021917,2]
[335182697,1723943444490,-503.1113352,0.00021917,2]
[335182698,1723943444499,-1336.81,0.00021917,2]
[335182699,1723943444509,-476.15553232,0.00021917,2]
[335182700,1723943444518,-500.0,0.00021917,2]
[335182701,1723943444528,-500.0,0.00021917,2]
[335182702,1723943444537,-500.0,0.00021917,2]
[335182703,1723943444546,-962.46,0.00021917,2]
[335182704,1723943444555,-500.0,0.00021917,2]
[335182705,1723943444564,-331.48780244,0.00021917,2]
[335182706,1723943444573,-500.0,0.00021917,2]
[335182707,1723943444583,-500.0,0.00021917,2]
[335182708,1723943444592,-500.0,0.00021917,2]
[335182709,1723943444601,-500.0,0.00021917,2]
[335182710,1723943444611,-1277.17,0.00021917,2]
[335182711,1723943444620,-500.0,0.00021917,2]
[335182712,1723943444630,-500.0,0.00021917,2]
[335182713,1723943444639,-4887.13,0.00021917,2]
[335182714,1723943444648,-271.81427962,0.00021917,2]
[335182715,1723943444657,-500.0,0.00021917,2]
[335182716,1723943444666,-500.0,0.00021917,2]
[335182717,1723943444675,-500.0,0.00021917,2]
[335182718,1723943444684,-937.5,0.00021917,2]
[335182719,1723943444693,-500.0,0.00021917,2]
[335182720,1723943444703,-1360.89,0.00021917,2]
[335182721,1723943444712,-688.28,0.00021917,2]
[335182722,1723943444721,-151.0,0.00021917,2]
[335182723,1723943444731,-151.0,0.00021917,2]
[335182724,1723943444740,-151.0,0.00021917,2]
[335182725,1723943444749,-154.870802,0.00021917,2]
[335182726,1723943444759,-500.0,0.00021917,2]
[335182727,1723943444768,-625.43,0.00021917,2]
[335182728,1723943444777,-500.0,0.00021917,2]
[335182729,1723943444786,-500.0,0.00021917,2]
[335182730,1723943444795,-623.03,0.00021917,2]
[335182731,1723943444804,-500.0,0.00021917,2]
[335182732,1723943444813,-1183.8,0.00021917,2]
[335182733,1723943444823,-500.0,0.00021917,2]
[335182734,1723943444833,-500.0,0.00021917,2]
[335182735,1723943444844,-500.0,0.00021917,2]
[335182737,1723943444854,-500.0,0.00021917,2]
[335182739,1723943444866,-503.57435163,0.00021917,2]
[335182740,1723943444877,-249.65520324,0.00021917,2]
[335182741,1723943444888,-500.0,0.00021917,2]
[335182742,1723943444898,-687.71,0.00021917,2]
[335182743,1723943444908,-500.0,0.00021917,2]
[335182744,1723943444919,-500.0,0.00021917,2]
[335182745,1723943444930,-500.0,0.00021917,2]
[335182746,1723943444942,-611.34,0.00021917,2]
[335182747,1723943444953,-815.51,0.00021917,2]
[335182748,1723943444963,-500.0,0.00021917,2]
[335182749,1723943444973,-500.0,0.00021917,2]
[335182750,1723943444984,-500.0,0.00021917,2]
[335182751,1723943445061,-500.0,0.00021917,2]
[335182752,1723943445072,-500.0,0.00021917,2]
[335182753,1723943445082,-2185.17,0.00021917,2]
[335182754,1723943445091,-500.0,0.00021917,2]
[335182755,1723943445100,-1577.35,0.00021917,2]
[335182756,1723943445109,-500.0,0.00021917,2]
[335182757,1723943445119,-500.0,0.00021917,2]
[335182758,1723943445129,-500.0,0.00021917,2]
[335182759,1723943445138,-3102.84,0.00021917,2]
[335182760,1723943445147,-500.0,0.00021917,2]
[335182761,1723943445156,-500.0,0.00021917,2]
[335182762,1723943445166,-500.0,0.00021917,2]
[335182763,1723943445175,-500.0,0.00021917,2]